[Event "Early-Titled-Tuesday-Blitz-March-05-2024"]
[Site "Chess.com"]
[Date "2024.03.05"]
[Round "11"]
[White "ZCorrales"]
[Black "chupitroko32"]
[Result "0-1"]
[WhiteElo "2223"]
[BlackElo "2376"]
[TimeControl "180+1"]
[EndTime "10:08:36 PST"]
[Termination "chupitroko32 won on time"]

1. e4 {[%clk 0:01:41.3]} 1... d5 {[%clk 0:02:58.5]} 2. exd5 {[%clk 0:01:40.9]}
2... Qxd5 {[%clk 0:02:59.4]} 3. Nc3 {[%clk 0:01:40.8]} 3... Qd8 {[%clk
0:02:59.7]} 4. d4 {[%clk 0:01:41.1]} 4... Nf6 {[%clk 0:03:00.1]} 5. Nf3 {[%clk
0:01:41.4]} 5... Bg4 {[%clk 0:03:00.4]} 6. Be2 {[%clk 0:01:41.9]} 6... e6 {[%clk
0:03:00.4]} 7. O-O {[%clk 0:01:42]} 7... c6 {[%clk 0:03:00.8]} 8. h3 {[%clk
0:01:42]} 8... Bh5 {[%clk 0:03:00.9]} 9. Be3 {[%clk 0:01:41.3]} 9... Nbd7 {[%clk
0:03:01.1]} 10. Ne5 {[%clk 0:01:40.3]} 10... Bxe2 {[%clk 0:03:00.5]} 11. Qxe2
{[%clk 0:01:41.2]} 11... Be7 {[%clk 0:03:00.7]} 12. Rad1 {[%clk 0:01:39.7]}
12... O-O {[%clk 0:03:00.6]} 13. Nxd7 {[%clk 0:01:37.7]} 13... Qxd7 {[%clk
0:03:00.9]} 14. Bg5 {[%clk 0:01:36.1]} 14... Rfd8 {[%clk 0:02:57.4]} 15. Ne4
{[%clk 0:01:21.9]} 15... Nxe4 {[%clk 0:02:53.6]} 16. Bxe7 {[%clk 0:01:19.7]}
16... Nc3 {[%clk 0:02:38.5]} 17. bxc3 {[%clk 0:01:19.3]} 17... Qxe7 {[%clk
0:02:38.5]} 18. Rd3 {[%clk 0:01:17.3]} 18... Rd5 {[%clk 0:02:37.4]} 19. Rg3
{[%clk 0:01:17]} 19... Ra5 {[%clk 0:02:35.7]} 20. Qg4 {[%clk 0:01:11.8]} 20...
g6 {[%clk 0:02:35]} 21. Rb1 {[%clk 0:01:09.9]} 21... Rxa2 {[%clk 0:02:30.3]} 22.
h4 {[%clk 0:01:05.6]} 22... a5 {[%clk 0:02:06.5]} 23. h5 {[%clk 0:01:05.7]}
23... a4 {[%clk 0:02:06.1]} 24. hxg6 {[%clk 0:01:05.9]} 24... fxg6 {[%clk
0:02:05.5]} 25. Qe4 {[%clk 0:01:04.8]} 25... a3 {[%clk 0:02:02.2]} 26. Rxg6+
{[%clk 0:01:03.9]} 26... hxg6 {[%clk 0:02:02.2]} 27. Qxg6+ {[%clk 0:01:04.8]}
27... Kf8 {[%clk 0:01:54]} 28. Qh6+ {[%clk 0:01:01.5]} 28... Qg7 {[%clk
0:01:49.1]} 29. Qxe6 {[%clk 0:00:32.7]} 29... Rb2 {[%clk 0:01:40]} 30. Qd6+
{[%clk 0:00:25.4]} 30... Kg8 {[%clk 0:01:33.9]} 31. Qe6+ {[%clk 0:00:24.8]}
31... Qf7 {[%clk 0:01:31.2]} 32. Qg4+ {[%clk 0:00:21]} 32... Kf8 {[%clk
0:01:31.2]} 33. Re1 {[%clk 0:00:20]} 33... a2 {[%clk 0:01:19.1]} 34. Qh4 {[%clk
0:00:17.9]} 34... Qg7 {[%clk 0:01:06.9]} 35. Qf4+ {[%clk 0:00:16.4]} 35... Kg8
{[%clk 0:01:06.4]} 36. Qf5 {[%clk 0:00:14.3]} 36... a1=Q {[%clk 0:01:00.8]} 37.
Qe6+ {[%clk 0:00:14.4]} 37... Qf7 {[%clk 0:01:00.1]} 38. Qg4+ {[%clk 0:00:07.7]}
38... Kf8 {[%clk 0:01:00.3]} 0-1

[Event "Early-Titled-Tuesday-Blitz-March-05-2024"]
[Site "Chess.com"]
[Date "2024.03.05"]
[Round "11"]
[White "Defenstrator"]
[Black "Kumi29"]
[Result "1/2-1/2"]
[WhiteElo "2454"]
[BlackElo "2588"]
[TimeControl "180+1"]
[EndTime "10:08:37 PST"]
[Termination "Game drawn by repetition"]

1. e4 {[%clk 0:01:55.6]} 1... e6 {[%clk 0:02:59.8]} 2. d4 {[%clk 0:01:06]} 2...
d5 {[%clk 0:02:59.2]} 3. Nc3 {[%clk 0:01:04.4]} 3... dxe4 {[%clk 0:02:59.1]} 4.
Nxe4 {[%clk 0:01:04.7]} 4... Nd7 {[%clk 0:02:59.4]} 5. Nf3 {[%clk 0:01:05]} 5...
Ngf6 {[%clk 0:02:59.7]} 6. Nxf6+ {[%clk 0:01:05.4]} 6... Nxf6 {[%clk 0:02:59.8]}
7. Bb5+ {[%clk 0:01:04.6]} 7... c6 {[%clk 0:02:59.4]} 8. Bd3 {[%clk 0:01:04.9]}
8... c5 {[%clk 0:02:59.8]} 9. Bb5+ {[%clk 0:01:04.6]} 9... Bd7 {[%clk
0:02:58.8]} 10. Bxd7+ {[%clk 0:01:04.2]} 10... Qxd7 {[%clk 0:02:58]} 11. O-O
{[%clk 0:01:02.3]} 11... cxd4 {[%clk 0:02:54.4]} 12. Qxd4 {[%clk 0:01:01.5]}
12... Qxd4 {[%clk 0:02:52.7]} 13. Nxd4 {[%clk 0:01:02.4]} 13... Be7 {[%clk
0:02:46]} 14. Bg5 {[%clk 0:01:00.9]} 14... O-O {[%clk 0:02:45.7]} 15. Rad1
{[%clk 0:00:59.6]} 15... Rac8 {[%clk 0:02:42.6]} 16. c3 {[%clk 0:00:59.3]} 16...
a6 {[%clk 0:02:42.4]} 17. Nf3 {[%clk 0:00:57.4]} 17... Rfd8 {[%clk 0:02:34.3]}
18. Ne5 {[%clk 0:00:56.6]} 18... h6 {[%clk 0:02:29]} 19. Bh4 {[%clk 0:00:52.6]}
19... g5 {[%clk 0:02:20.7]} 20. Bg3 {[%clk 0:00:52.2]} 20... Ne4 {[%clk
0:02:20.3]} 21. Nf3 {[%clk 0:00:40.3]} 21... Nxg3 {[%clk 0:02:18.6]} 22. hxg3
{[%clk 0:00:40.4]} 22... Bc5 {[%clk 0:02:13.1]} 23. Rd2 {[%clk 0:00:36.6]} 23...
Rxd2 {[%clk 0:02:12.1]} 24. Nxd2 {[%clk 0:00:37.5]} 24... Rd8 {[%clk 0:02:11.7]}
25. Ne4 {[%clk 0:00:37.6]} 25... Be7 {[%clk 0:02:10.7]} 26. f4 {[%clk 0:00:29]}
26... f5 {[%clk 0:02:06.8]} 27. Nf2 {[%clk 0:00:27.1]} 27... Rd2 {[%clk
0:02:04.8]} 28. Nd1 {[%clk 0:00:20.6]} 28... Bc5+ {[%clk 0:02:01.1]} 29. Kh2
{[%clk 0:00:20.9]} 29... g4 {[%clk 0:02:01.4]} 30. Re1 {[%clk 0:00:18.7]} 30...
Kf7 {[%clk 0:01:59.6]} 31. Ne3 {[%clk 0:00:17.8]} 31... Bxe3 {[%clk 0:01:54.3]}
32. Rxe3 {[%clk 0:00:18.3]} 32... Rxb2 {[%clk 0:01:54.6]} 33. Rd3 {[%clk
0:00:18.9]} 33... Ke7 {[%clk 0:01:54.9]} 34. a4 {[%clk 0:00:17.7]} 34... Rb3
{[%clk 0:01:51.7]} 35. Rd4 {[%clk 0:00:15.9]} 35... Rxc3 {[%clk 0:01:50.8]} 36.
Rb4 {[%clk 0:00:16.2]} 36... Rc7 {[%clk 0:01:50.4]} 37. a5 {[%clk 0:00:16.3]}
37... Kd6 {[%clk 0:01:47.8]} 38. Rb6+ {[%clk 0:00:15.9]} 38... Kd5 {[%clk
0:01:47.3]} 39. Kg1 {[%clk 0:00:15.3]} 39... Rc5 {[%clk 0:01:44]} 40. Rxb7
{[%clk 0:00:13.9]} 40... Rxa5 {[%clk 0:01:44]} 41. Rh7 {[%clk 0:00:13.5]} 41...
Ra1+ {[%clk 0:01:40.3]} 42. Kh2 {[%clk 0:00:13.3]} 42... a5 {[%clk 0:01:38.5]}
43. Rd7+ {[%clk 0:00:13]} 43... Ke4 {[%clk 0:01:27.6]} 44. Rd4+ {[%clk
0:00:13.3]} 44... Ke3 {[%clk 0:01:28.3]} 45. Rd3+ {[%clk 0:00:13.4]} 45... Kf2
{[%clk 0:01:20.7]} 46. Rd2+ {[%clk 0:00:10.8]} 46... Ke3 {[%clk 0:01:17.3]} 47.
Rd3+ {[%clk 0:00:11.2]} 47... Ke4 {[%clk 0:01:14.2]} 48. Rd4+ {[%clk 0:00:11.4]}
48... Ke3 {[%clk 0:01:14.8]} 49. Rd3+ {[%clk 0:00:11.8]} 1/2-1/2

[Event "Early-Titled-Tuesday-Blitz-March-05-2024"]
[Site "Chess.com"]
[Date "2024.03.05"]
[Round "11"]
[White "AA95"]
[Black "Hope_6"]
[Result "0-1"]
[WhiteElo "2492"]
[BlackElo "2785"]
[TimeControl "180+1"]
[EndTime "10:08:38 PST"]
[Termination "Hope_6 won by resignation"]

1. Nf3 {[%clk 0:03:00.9]} 1... d5 {[%clk 0:02:59.7]} 2. g3 {[%clk 0:03:01]} 2...
b6 {[%clk 0:02:59.6]} 3. Bg2 {[%clk 0:03:01.2]} 3... Bb7 {[%clk 0:03:00.5]} 4.
O-O {[%clk 0:03:01.8]} 4... e6 {[%clk 0:03:01.3]} 5. d4 {[%clk 0:03:02.2]} 5...
Nf6 {[%clk 0:03:01.8]} 6. Ne5 {[%clk 0:03:02.5]} 6... Be7 {[%clk 0:03:01.6]} 7.
c4 {[%clk 0:03:03]} 7... O-O {[%clk 0:03:02]} 8. Nc3 {[%clk 0:03:03.4]} 8...
Nbd7 {[%clk 0:03:02.1]} 9. cxd5 {[%clk 0:03:01.2]} 9... Nxe5 {[%clk 0:03:00.5]}
10. dxe5 {[%clk 0:02:59.8]} 10... Nxd5 {[%clk 0:03:00.6]} 11. Qb3 {[%clk
0:02:47.9]} 11... Nxc3 {[%clk 0:02:47.7]} 12. Bxb7 {[%clk 0:02:11.3]} 12...
Nxe2+ {[%clk 0:02:45.3]} 13. Kg2 {[%clk 0:02:11.6]} 13... Rb8 {[%clk 0:02:44]}
14. Rd1 {[%clk 0:02:05.1]} 14... Nd4 {[%clk 0:02:40]} 15. Qc4 {[%clk 0:02:01.1]}
15... Rxb7 {[%clk 0:02:30.1]} 16. Rxd4 {[%clk 0:02:00]} 16... Qe8 {[%clk
0:02:30.5]} 17. Be3 {[%clk 0:01:30.5]} 17... Bc5 {[%clk 0:02:23.4]} 18. Rd3
{[%clk 0:01:21]} 18... Bxe3 {[%clk 0:02:23.3]} 19. fxe3 {[%clk 0:01:14.9]} 19...
c5 {[%clk 0:02:21.7]} 20. Rd6 {[%clk 0:01:09.4]} 20... Rd7 {[%clk 0:02:13.6]}
21. Rad1 {[%clk 0:01:08.8]} 21... Rxd6 {[%clk 0:02:13.8]} 22. Rxd6 {[%clk
0:01:09.7]} 22... Qa8+ {[%clk 0:02:12.1]} 23. e4 {[%clk 0:01:06.3]} 23... Rc8
{[%clk 0:02:04.3]} 24. Kf3 {[%clk 0:01:01.3]} 24... Qb7 {[%clk 0:02:00.8]} 25.
Qb5 {[%clk 0:00:53.8]} 25... h6 {[%clk 0:01:50.6]} 26. Rd7 {[%clk 0:00:34.9]}
26... Qb8 {[%clk 0:01:47.2]} 27. Qa6 {[%clk 0:00:29.9]} 27... Rd8 {[%clk
0:01:43.8]} 28. Rxd8+ {[%clk 0:00:17.5]} 28... Qxd8 {[%clk 0:01:44.7]} 29. Qxa7
{[%clk 0:00:17.8]} 29... Qd3+ {[%clk 0:01:42.9]} 30. Kf2 {[%clk 0:00:16.9]}
30... Qd4+ {[%clk 0:01:40.3]} 31. Kf3 {[%clk 0:00:17]} 31... Qxb2 {[%clk
0:01:36.2]} 32. Qb8+ {[%clk 0:00:16.7]} 32... Kh7 {[%clk 0:01:36.3]} 33. Qc7
{[%clk 0:00:16.5]} 33... Kg6 {[%clk 0:01:32.2]} 34. h4 {[%clk 0:00:16]} 34... h5
{[%clk 0:01:26]} 35. Qd8 {[%clk 0:00:12.1]} 35... Qc3+ {[%clk 0:01:25]} 36. Kf4
{[%clk 0:00:09.3]} 36... Qc1+ {[%clk 0:01:19.1]} 37. Kf3 {[%clk 0:00:09.3]}
37... b5 {[%clk 0:01:16]} 38. Qg5+ {[%clk 0:00:08.1]} 38... Qxg5 {[%clk
0:01:15.8]} 39. hxg5 {[%clk 0:00:08.3]} 39... Kxg5 {[%clk 0:01:16.1]} 40. Kf2
{[%clk 0:00:08.6]} 40... Kg4 {[%clk 0:01:15.8]} 41. Kg2 {[%clk 0:00:09.1]} 41...
b4 {[%clk 0:01:15.9]} 42. Kf2 {[%clk 0:00:09.1]} 42... c4 {[%clk 0:01:16.1]} 0-1

[Event "Early-Titled-Tuesday-Blitz-March-05-2024"]
[Site "Chess.com"]
[Date "2024.03.05"]
[Round "11"]
[White "klercaku"]
[Black "tarno17"]
[Result "0-1"]
[WhiteElo "2206"]
[BlackElo "2191"]
[TimeControl "180+1"]
[EndTime "10:08:42 PST"]
[Termination "tarno17 won by checkmate"]

1. e4 {[%clk 0:02:59.2]} 1... c5 {[%clk 0:03:00.3]} 2. Nf3 {[%clk 0:02:58.5]}
2... e6 {[%clk 0:03:00.1]} 3. d4 {[%clk 0:02:55.4]} 3... cxd4 {[%clk 0:03:01]}
4. Nxd4 {[%clk 0:02:56.2]} 4... a6 {[%clk 0:03:01.8]} 5. Nc3 {[%clk 0:02:55.8]}
5... Qc7 {[%clk 0:03:02.1]} 6. a3 {[%clk 0:02:51.7]} 6... b5 {[%clk 0:03:01.3]}
7. Be3 {[%clk 0:02:51.5]} 7... Bb7 {[%clk 0:03:01.8]} 8. Be2 {[%clk 0:02:47.6]}
8... Nf6 {[%clk 0:03:02.1]} 9. Bf3 {[%clk 0:02:43.9]} 9... d6 {[%clk 0:02:58.1]}
10. O-O {[%clk 0:02:43.7]} 10... Be7 {[%clk 0:02:57]} 11. h3 {[%clk 0:02:37.4]}
11... Nc6 {[%clk 0:02:56.2]} 12. Qd2 {[%clk 0:02:35.9]} 12... Ne5 {[%clk
0:02:50.7]} 13. Qe2 {[%clk 0:02:24.3]} 13... O-O {[%clk 0:02:43]} 14. Nd1 {[%clk
0:01:24.1]} 14... Nxf3+ {[%clk 0:02:38.5]} 15. gxf3 {[%clk 0:01:22]} 15... d5
{[%clk 0:02:32]} 16. exd5 {[%clk 0:01:02.7]} 16... Nxd5 {[%clk 0:02:23.3]} 17.
Kh1 {[%clk 0:00:53.4]} 17... Rad8 {[%clk 0:02:09.2]} 18. Rg1 {[%clk 0:00:48.5]}
18... Nf4 {[%clk 0:02:04.2]} 19. Qf1 {[%clk 0:00:13.3]} 19... Rxd4 {[%clk
0:01:49.8]} 20. Bxd4 {[%clk 0:00:13.1]} 20... Bxf3+ {[%clk 0:01:49.2]} 21. Kh2
{[%clk 0:00:12.2]} 21... Ng2+ {[%clk 0:01:36]} 22. Kh1 {[%clk 0:00:10.6]} 22...
Ne3+ {[%clk 0:01:29.7]} 23. Rg2 {[%clk 0:00:05]} 23... Bxg2+ {[%clk 0:01:11.5]}
24. Qxg2 {[%clk 0:00:04.2]} 24... Nxg2 {[%clk 0:01:12.4]} 25. Kxg2 {[%clk
0:00:04.9]} 25... Rd8 {[%clk 0:01:07.3]} 26. Bc3 {[%clk 0:00:03]} 26... Bf6
{[%clk 0:01:04.8]} 27. Bxf6 {[%clk 0:00:02.1]} 27... gxf6 {[%clk 0:01:05.7]} 28.
Ne3 {[%clk 0:00:02.9]} 28... Rd2 {[%clk 0:01:03.5]} 29. Kf3 {[%clk 0:00:03.2]}
29... Qc6+ {[%clk 0:01:02.6]} 30. Kg3 {[%clk 0:00:01.7]} 30... Qe4 {[%clk
0:01:00.5]} 31. Rg1 {[%clk 0:00:01.8]} 31... Kf8 {[%clk 0:00:59.9]} 32. Kh2
{[%clk 0:00:02.1]} 32... Rxf2+ {[%clk 0:00:59.3]} 33. Ng2 {[%clk 0:00:02.6]}
33... Qe5+ {[%clk 0:00:50.1]} 34. Kh1 {[%clk 0:00:02.5]} 34... Rf3 {[%clk
0:00:50.5]} 35. h4 {[%clk 0:00:01.2]} 35... Rh3# {[%clk 0:00:50.3]} 0-1

[Event "Early-Titled-Tuesday-Blitz-March-05-2024"]
[Site "Chess.com"]
[Date "2024.03.05"]
[Round "11"]
[White "Dyadya81"]
[Black "nihalsarin"]
[Result "0-1"]
[WhiteElo "2892"]
[BlackElo "3172"]
[TimeControl "180+1"]
[EndTime "10:08:49 PST"]
[Termination "nihalsarin won by resignation"]

1. e4 {[%clk 0:03:00.9]} 1... e6 {[%clk 0:03:00.6]} 2. d4 {[%clk 0:03:00.7]}
2... d5 {[%clk 0:03:01.5]} 3. exd5 {[%clk 0:03:01.4]} 3... exd5 {[%clk
0:03:01.9]} 4. Nf3 {[%clk 0:03:02.2]} 4... Bd6 {[%clk 0:03:02.4]} 5. Bd3 {[%clk
0:02:59.8]} 5... Ne7 {[%clk 0:03:02.7]} 6. O-O {[%clk 0:02:57.5]} 6... O-O
{[%clk 0:03:03.1]} 7. c3 {[%clk 0:02:49.6]} 7... Bf5 {[%clk 0:03:03.2]} 8. Re1
{[%clk 0:02:47.7]} 8... Bxd3 {[%clk 0:03:03.1]} 9. Qxd3 {[%clk 0:02:48.6]} 9...
c6 {[%clk 0:03:04]} 10. Bg5 {[%clk 0:02:48.5]} 10... f6 {[%clk 0:03:04.2]} 11.
Bh4 {[%clk 0:02:48.9]} 11... Qd7 {[%clk 0:03:04.8]} 12. Bg3 {[%clk 0:02:49.4]}
12... Bxg3 {[%clk 0:03:05.3]} 13. hxg3 {[%clk 0:02:50.3]} 13... Na6 {[%clk
0:03:06.2]} 14. Nbd2 {[%clk 0:02:49.6]} 14... Nc7 {[%clk 0:03:06.9]} 15. Re2
{[%clk 0:02:49.6]} 15... Rfe8 {[%clk 0:03:07.2]} 16. Rae1 {[%clk 0:02:49.1]}
16... Qf5 {[%clk 0:03:06.3]} 17. Qxf5 {[%clk 0:02:45.8]} 17... Nxf5 {[%clk
0:03:07.2]} 18. Rxe8+ {[%clk 0:02:44.3]} 18... Nxe8 {[%clk 0:03:07.8]} 19. g4
{[%clk 0:02:42.3]} 19... Nfd6 {[%clk 0:03:08.1]} 20. g5 {[%clk 0:02:41.7]} 20...
Kf7 {[%clk 0:03:07.4]} 21. gxf6 {[%clk 0:02:41.2]} 21... gxf6 {[%clk 0:03:08.3]}
22. g3 {[%clk 0:02:37.1]} 22... a5 {[%clk 0:03:08.8]} 23. Kg2 {[%clk 0:02:37.5]}
23... a4 {[%clk 0:03:09.2]} 24. Rh1 {[%clk 0:02:37.8]} 24... Kg8 {[%clk
0:03:09.4]} 25. Ne1 {[%clk 0:02:32.7]} 25... a3 {[%clk 0:03:07.2]} 26. b3 {[%clk
0:02:30.3]} 26... Nb5 {[%clk 0:03:07.9]} 27. Nb1 {[%clk 0:02:30.6]} 27... Ned6
{[%clk 0:03:08.6]} 28. f3 {[%clk 0:02:28.4]} 28... Re8 {[%clk 0:03:03.5]} 29.
Kf2 {[%clk 0:02:28.7]} 29... Nf5 {[%clk 0:03:03.7]} 30. Nc2 {[%clk 0:02:26.1]}
30... Kg7 {[%clk 0:02:59]} 31. g4 {[%clk 0:02:23]} 31... Ne7 {[%clk 0:02:56.6]}
32. Re1 {[%clk 0:02:23.4]} 32... Kf7 {[%clk 0:02:57]} 33. Rh1 {[%clk 0:02:22.5]}
33... Kg7 {[%clk 0:02:57.4]} 34. Re1 {[%clk 0:02:22.4]} 34... Kf7 {[%clk
0:02:54.9]} 35. c4 {[%clk 0:02:18]} 35... dxc4 {[%clk 0:02:52.9]} 36. bxc4
{[%clk 0:02:18.4]} 36... Nd6 {[%clk 0:02:53.6]} 37. Nbxa3 {[%clk 0:02:18.7]}
37... Ra8 {[%clk 0:02:54]} 38. Re3 {[%clk 0:02:18.3]} 38... Ra4 {[%clk
0:02:52.8]} 39. Rc3 {[%clk 0:02:14.7]} 39... f5 {[%clk 0:02:50.5]} 40. Ke3
{[%clk 0:02:10.2]} 40... fxg4 {[%clk 0:02:45.1]} 41. fxg4 {[%clk 0:02:11.1]}
41... b5 {[%clk 0:02:45.8]} 42. Kd2 {[%clk 0:01:54.1]} 42... Ne4+ {[%clk
0:02:43.6]} 43. Kd3 {[%clk 0:01:52.9]} 43... Nxc3 {[%clk 0:02:44.5]} 44. Kxc3
{[%clk 0:01:53.6]} 44... bxc4 {[%clk 0:02:45.3]} 45. Nxc4 {[%clk 0:01:52.1]}
45... Rxa2 {[%clk 0:02:44.3]} 46. Nb4 {[%clk 0:01:48.6]} 46... Nd5+ {[%clk
0:02:32.1]} 47. Kb3 {[%clk 0:01:32.5]} 47... Nxb4 {[%clk 0:02:29.9]} 48. Kxb4
{[%clk 0:01:33.4]} 48... Ke6 {[%clk 0:02:29.6]} 49. Kc5 {[%clk 0:01:32.9]} 49...
Rc2 {[%clk 0:02:29.8]} 50. Kb4 {[%clk 0:01:29.3]} 50... Rc1 {[%clk 0:02:12.8]}
51. Ne3 {[%clk 0:01:22.3]} 51... Re1 {[%clk 0:02:12.7]} 52. Nf5 {[%clk
0:01:20.1]} 52... Kd5 {[%clk 0:02:10.7]} 53. Kc3 {[%clk 0:01:17.1]} 53... Re4
{[%clk 0:02:10.2]} 54. Kd3 {[%clk 0:01:15.7]} 54... Rf4 {[%clk 0:02:09.7]} 55.
Ne7+ {[%clk 0:01:07.4]} 55... Kd6 {[%clk 0:02:09.2]} 56. Nf5+ {[%clk 0:01:07.8]}
56... Ke6 {[%clk 0:02:05.4]} 57. Ne3 {[%clk 0:01:06.8]} 57... Kf6 {[%clk
0:02:02.3]} 58. Kc4 {[%clk 0:01:05.9]} 58... Kg5 {[%clk 0:02:01.6]} 59. Kc5
{[%clk 0:01:05]} 59... Re4 {[%clk 0:02:01.8]} 60. Nc4 {[%clk 0:01:01.5]} 60...
Kxg4 {[%clk 0:02:00.2]} 61. Ne5+ {[%clk 0:01:02]} 61... Kf5 {[%clk 0:01:50]} 62.
Nxc6 {[%clk 0:01:02.1]} 62... h5 {[%clk 0:01:50.3]} 63. d5 {[%clk 0:01:02.7]}
63... h4 {[%clk 0:01:50.3]} 64. d6 {[%clk 0:01:03.2]} 64... Ke6 {[%clk
0:01:51.1]} 65. Nb8 {[%clk 0:00:48.6]} 65... h3 {[%clk 0:01:44.4]} 66. d7 {[%clk
0:00:49.2]} 66... Re5+ {[%clk 0:01:44.7]} 67. Kc6 {[%clk 0:00:43.5]} 67... Rd5
{[%clk 0:01:45.6]} 68. Na6 {[%clk 0:00:42.7]} 68... Rxd7 {[%clk 0:01:38]} 69.
Nc5+ {[%clk 0:00:42.4]} 69... Kf5 {[%clk 0:01:38.9]} 0-1

[Event "Early-Titled-Tuesday-Blitz-March-05-2024"]
[Site "Chess.com"]
[Date "2024.03.05"]
[Round "11"]
[White "Abund"]
[Black "Jumbo"]
[Result "1-0"]
[WhiteElo "2794"]
[BlackElo "2907"]
[TimeControl "180+1"]
[EndTime "10:08:53 PST"]
[Termination "Abund won on time"]

1. e4 {[%clk 0:03:00.9]} 1... c6 {[%clk 0:02:58.9]} 2. d4 {[%clk 0:03:01]} 2...
d5 {[%clk 0:02:59.4]} 3. exd5 {[%clk 0:03:01.9]} 3... cxd5 {[%clk 0:02:59.9]} 4.
Bd3 {[%clk 0:03:02.7]} 4... Nc6 {[%clk 0:02:53.3]} 5. c3 {[%clk 0:03:02.8]} 5...
Qc7 {[%clk 0:02:52.8]} 6. h3 {[%clk 0:03:01]} 6... e6 {[%clk 0:02:48.3]} 7. Nf3
{[%clk 0:02:59.8]} 7... Bd6 {[%clk 0:02:48.6]} 8. O-O {[%clk 0:03:00.1]} 8...
Nge7 {[%clk 0:02:48.4]} 9. Re1 {[%clk 0:02:58]} 9... h6 {[%clk 0:02:47.6]} 10.
Qe2 {[%clk 0:02:51.3]} 10... a6 {[%clk 0:02:43.9]} 11. Nbd2 {[%clk 0:02:48.3]}
11... O-O {[%clk 0:02:41.8]} 12. Nf1 {[%clk 0:02:36.1]} 12... f6 {[%clk
0:02:40.2]} 13. c4 {[%clk 0:02:31.4]} 13... Bd7 {[%clk 0:02:30.9]} 14. a3 {[%clk
0:02:24]} 14... Rae8 {[%clk 0:02:25.3]} 15. Ne3 {[%clk 0:02:17.6]} 15... Bf4
{[%clk 0:02:06]} 16. Bd2 {[%clk 0:02:00.5]} 16... Qb8 {[%clk 0:01:51.3]} 17. Bc2
{[%clk 0:01:50.4]} 17... b5 {[%clk 0:00:47.9]} 18. b3 {[%clk 0:01:27.7]} 18...
Qb6 {[%clk 0:00:39.2]} 19. Qd3 {[%clk 0:01:25.1]} 19... f5 {[%clk 0:00:11.8]}
20. Nxd5 {[%clk 0:00:35.8]} 20... exd5 {[%clk 0:00:11.8]} 21. Bxf4 {[%clk
0:00:33.4]} 21... Rf6 {[%clk 0:00:06.8]} 22. c5 {[%clk 0:00:32.8]} 22... Qd8
{[%clk 0:00:07]} 23. b4 {[%clk 0:00:28.7]} 23... g5 {[%clk 0:00:05.8]} 24. Bd6
{[%clk 0:00:27.6]} 24... Ng6 {[%clk 0:00:05.7]} 25. Ne5 {[%clk 0:00:22.2]} 25...
Nf4 {[%clk 0:00:01.8]} 26. Qd2 {[%clk 0:00:21.9]} 1-0

[Event "Early-Titled-Tuesday-Blitz-March-05-2024"]
[Site "Chess.com"]
[Date "2024.03.05"]
[Round "11"]
[White "bancsoo"]
[Black "baki83"]
[Result "0-1"]
[WhiteElo "2905"]
[BlackElo "2814"]
[TimeControl "180+1"]
[EndTime "10:08:54 PST"]
[Termination "baki83 won by resignation"]

1. Nf3 {[%clk 0:03:00.9]} 1... Nf6 {[%clk 0:02:58]} 2. d4 {[%clk 0:03:00.8]}
2... d5 {[%clk 0:02:57.6]} 3. c3 {[%clk 0:03:00]} 3... e6 {[%clk 0:02:54.8]} 4.
Bf4 {[%clk 0:02:55.8]} 4... b6 {[%clk 0:02:54.1]} 5. e3 {[%clk 0:02:55.1]} 5...
Bb7 {[%clk 0:02:54.5]} 6. Bd3 {[%clk 0:02:54.1]} 6... Nbd7 {[%clk 0:02:54.2]} 7.
Nbd2 {[%clk 0:02:51.9]} 7... Ne4 {[%clk 0:02:54.1]} 8. a4 {[%clk 0:02:48.9]}
8... a6 {[%clk 0:02:53.6]} 9. h3 {[%clk 0:02:47.9]} 9... f5 {[%clk 0:02:51.8]}
10. g4 {[%clk 0:02:43.2]} 10... Bd6 {[%clk 0:02:50.3]} 11. Bxd6 {[%clk
0:02:34.3]} 11... cxd6 {[%clk 0:02:49.8]} 12. gxf5 {[%clk 0:02:33.5]} 12... exf5
{[%clk 0:02:49.7]} 13. Qb3 {[%clk 0:02:14.8]} 13... Qe7 {[%clk 0:02:16.9]} 14.
O-O-O {[%clk 0:01:54.6]} 14... Nxf2 {[%clk 0:02:08]} 15. Bxf5 {[%clk 0:01:53.4]}
15... O-O {[%clk 0:02:03.6]} 16. e4 {[%clk 0:01:42.4]} 16... Kh8 {[%clk
0:01:54.8]} 17. Bxd7 {[%clk 0:01:23]} 17... Qxd7 {[%clk 0:01:52.4]} 18. e5
{[%clk 0:01:21.7]} 18... b5 {[%clk 0:01:35.8]} 19. exd6 {[%clk 0:01:17.7]} 19...
Qxd6 {[%clk 0:01:29.3]} 20. Ne5 {[%clk 0:01:17]} 20... Nxh1 {[%clk 0:01:20.2]}
21. Rxh1 {[%clk 0:01:17.6]} 21... Bc6 {[%clk 0:01:11.4]} 22. a5 {[%clk
0:01:14.8]} 22... Be8 {[%clk 0:01:06.7]} 23. Kb1 {[%clk 0:00:59.3]} 23... Bh5
{[%clk 0:01:01.4]} 24. Ka1 {[%clk 0:00:57.9]} 24... Rf2 {[%clk 0:00:57.8]} 25.
Nb1 {[%clk 0:00:57.3]} 25... Raf8 {[%clk 0:00:57.9]} 26. Ka2 {[%clk 0:00:32.1]}
26... Be2 {[%clk 0:00:36.2]} 27. Na3 {[%clk 0:00:26]} 27... Bc4 {[%clk
0:00:31.9]} 28. Naxc4 {[%clk 0:00:26.4]} 28... dxc4 {[%clk 0:00:29.4]} 29. Qd1
{[%clk 0:00:26.3]} 29... Qc7 {[%clk 0:00:21.9]} 30. Rg1 {[%clk 0:00:20.2]} 30...
Qxa5+ {[%clk 0:00:20.2]} 31. Kb1 {[%clk 0:00:20.9]} 31... Rxb2+ {[%clk 0:00:17]}
32. Kxb2 {[%clk 0:00:17.5]} 32... Rf2+ {[%clk 0:00:17.6]} 0-1